fUST/lending_fUST_20251027
["ID","MTS","AMOUNT","RATE_DAILY","PERIOD"]
[392495896,1761568240652,-300.0,0.00015892,2]
[392495897,1761568240662,-300.0,0.00015892,2]
[392495898,1761568240671,-300.0,0.00015892,2]
[392495899,1761568240680,-984.0,0.00015893,2]
[392495900,1761568240689,-632.0,0.00015893,2]
[392495901,1761568240699,-2166.0,0.00015893,2]
[392495902,1761568240709,-412.0,0.00015893,2]
[392495903,1761568240718,-180.04140952,0.00016241,2]
[392495904,1761568240732,-402.9669154,0.00016289,2]
[392495905,1761568240740,-4403.67229944,0.00016289,2]
[392495906,1761568240750,-293.61626532,0.00016289,2]
[392495907,1761568240759,-168.08464755,0.00016289,2]
[392495908,1761568240770,-350.0,0.00016289,2]
[392495909,1761568240779,-400.0,0.00016289,2]
[392495910,1761568240788,-5989.11846277,0.0001629,2]
[392496092,1761568242959,-900.0,0.00015733,2]
[392496094,1761568242968,-7273.62668011,0.0001629,2]
[392496096,1761568242979,-507.34188192,0.0001629,2]
[392496098,1761568242991,-5152.89199758,0.0001629,2]
[392496107,1761568243068,-510.33522986,0.0001629,2]
[392496390,1761568245968,-40370.86900315,0.0001629,2]
[392496595,1761568329181,382.892332,0.000301,120]
[392496602,1761568366016,400.476924,0.00017961,14]
[392496603,1761568368507,400.476924,0.00018,20]
[392496606,1761568386435,870.82,0.00030137,120]
[392496614,1761568453027,1509.24050534,0.0001825,9]
[392496616,1761568461364,241.38845899,0.0001825,9]
[392496628,1761568494516,10000.0,0.00030137,120]
[392496629,1761568503511,6414.57044839,0.000191,30]
[392496630,1761568512239,10000.0,0.000181,10]
[392496631,1761568519116,10000.0,0.00015,2]
[392496632,1761568601466,3585.717,0.00030137,120]
[392496640,1761568654267,5000.0,0.0001825,9]
[392496641,1761568662190,5000.0,0.0001825,9]
[392496676,1761568962220,368.43877,0.00017961,14]
[392496677,1761568965447,368.43877,0.00018,20]
[392496730,1761569058365,190.3970847,0.00014878,2]
[392496737,1761569068156,190.3970847,0.00014878,2]
[392496743,1761569076920,190.3970847,0.00014878,2]
[392496816,1761569287432,196.0,0.00014959,2]
[392496817,1761569295733,196.0,0.00014959,2]
[392496818,1761569311187,196.0,0.00014959,2]
[392496819,1761569319092,196.0,0.00014959,2]
[392496820,1761569334895,196.0,0.00014959,2]
[392496821,1761569342676,196.0,0.00014959,2]
[392496843,1761569359044,196.0,0.00014959,2]
[392496849,1761569367093,196.0,0.00014959,2]
[392496850,1761569382847,196.0,0.00014959,2]
[392496851,1761569391043,543.098393,0.00014994,2]
[392496852,1761569406870,196.0,0.00014959,2]
[392496853,1761569415089,196.0,0.00014959,2]
[392496854,1761569430639,196.0,0.00014959,2]
[392496874,1761569432251,-196.0,0.0001511,2]
[392496875,1761569432261,-543.098393,0.00015145,2]
[392496876,1761569432271,-300.0,0.00015962,2]
[392496877,1761569432280,-984.0,0.00015963,2]
[392496878,1761569432290,-632.0,0.00015963,2]
[392496879,1761569432299,-2166.0,0.00015963,2]
[392496880,1761569432309,-601.7293811,0.00016,2]
[392496881,1761569432318,-196.0,0.00016107,2]
[392496882,1761569432328,-522.85566982,0.00016189,2]
[392496883,1761569432337,-400.32222067,0.0001619,2]
[392496884,1761569432346,-14813.52938317,0.0001619,2]
[392496885,1761569432358,-2751.17652843,0.0001619,2]
[392496886,1761569432374,-345.04659234,0.0001619,2]
[392496888,1761569438016,-742.92063236,0.0001619,2]
[392496947,1761569440571,-17262.0,0.00016028,2]
[392497264,1761569444092,-9000.41447088,0.00016028,2]
[392497265,1761569444103,-1242.7606029,0.00016028,2]
[392497267,1761569444114,-2080.82335596,0.00016028,2]
[392497935,1761569500104,554.082643,0.00013699,2]
[392497941,1761569616077,180445.63646065,0.000301,120]
[392497942,1761569635140,196.0,0.00014959,2]
[392497943,1761569651161,196.0,0.00014959,2]
[392497944,1761569659164,196.0,0.00014959,2]
[392497945,1761569674741,196.0,0.00014959,2]
[392497946,1761569683465,196.0,0.00014959,2]
[392497947,1761569699074,196.0,0.00014959,2]
[392497952,1761569706946,196.0,0.00014959,2]
[392497954,1761569719238,200.0,0.00030048,120]
[392497955,1761569720419,200.0,0.00030048,120]
[392497956,1761569721499,200.0,0.00030048,120]
[392497957,1761569722784,196.0,0.00014959,2]
[392498080,1761569730947,196.0,0.00014959,2]
[392498566,1761569746754,196.0,0.00014959,2]
[392498567,1761569756800,196.0,0.00014959,2]
[392498568,1761569772473,196.0,0.00014959,2]
[392498569,1761569780641,196.0,0.00014959,2]
[392498570,1761569796327,196.0,0.00014959,2]
[392498571,1761569804400,196.0,0.00014959,2]
[392498572,1761569819964,196.0,0.00014959,2]
[392498573,1761569828642,196.0,0.00014959,2]
[392498574,1761569844478,196.0,0.00014959,2]
[392498575,1761569853039,196.0,0.00014959,2]
[392498576,1761569876920,196.0,0.00014959,2]
[392498578,1761569900915,196.0,0.00014959,2]
[392498579,1761569924860,361.96141388,0.00014959,2]
[392498580,1761569948796,361.96141388,0.00014959,2]
[392498581,1761569972676,361.96141388,0.00014959,2]
[392498582,1761569995286,361.96141388,0.00014959,2]
[392498583,1761570018892,361.96141388,0.00014959,2]
[392498584,1761570042682,361.96141388,0.00014959,2]
[392498585,1761570059344,361.96141388,0.00014959,2]
[392498586,1761570067642,361.96141388,0.00014959,2]
[392498587,1761570083580,361.96141388,0.00014959,2]
[392498588,1761570092754,361.96141388,0.00014959,2]
[392498589,1761570109225,165.96141388,0.00014959,2]
[392498590,1761570117278,361.96141388,0.00014959,2]
[392498591,1761570133032,361.96141388,0.00014959,2]
[392498592,1761570140975,361.96141388,0.00014959,2]
[392498593,1761570156754,361.96141388,0.00014959,2]
[392498594,1761570164846,361.96141388,0.00014959,2]
[392498595,1761570180643,361.96141388,0.00014959,2]
[392498596,1761570189176,361.96141388,0.00014959,2]
[392498597,1761570205022,361.96141388,0.00014959,2]
[392498598,1761570213189,361.96141388,0.00014959,2]
[392498599,1761570229670,361.96141388,0.00014959,2]
[392498600,1761570237630,361.96141388,0.00014959,2]
[392498601,1761570265920,361.96141388,0.00014959,2]
[392498602,1761570274713,361.96141388,0.00014959,2]
[392498603,1761570290936,361.96141388,0.00014959,2]
[392498604,1761570299157,361.96141388,0.00014959,2]
[392498605,1761570315076,361.96141388,0.00014959,2]
[392498606,1761570324687,361.96141388,0.00014959,2]
[392498607,1761570340766,361.96141388,0.00014959,2]
[392498608,1761570348851,165.96141388,0.00014959,2]
[392498609,1761570364565,361.96141388,0.00014959,2]
[392498610,1761570372567,361.96141388,0.00014959,2]
[392498611,1761570388934,361.96141388,0.00014959,2]
[392498612,1761570397072,361.96141388,0.00014959,2]
[392498614,1761570412369,361.96141388,0.00014959,2]
[392498615,1761570420424,361.96141388,0.00014959,2]
[392498616,1761570436132,361.96141388,0.00014959,2]
[392498620,1761570444609,361.96141388,0.00014959,2]
[392498621,1761570460592,361.96141388,0.00014959,2]
[392498622,1761570468503,361.96141388,0.00014959,2]
[392498623,1761570484093,361.96141388,0.00014959,2]
[392498624,1761570492662,361.96141388,0.00014959,2]
[392498630,1761570508190,361.96141388,0.00014959,2]
[392498631,1761570516223,361.96141388,0.00014959,2]
[392498633,1761570532188,361.96141388,0.00014959,2]
[392498634,1761570540147,361.96141388,0.00014959,2]
[392498672,1761570555744,361.96141388,0.00014959,2]
[392498673,1761570558269,1000.0,0.00014975,2]
[392498674,1761570563818,361.96141388,0.00014959,2]
[392498676,1761570579939,361.96141388,0.00014959,2]
[392498677,1761570587597,361.96141388,0.00014959,2]
[392498678,1761570603295,361.96141388,0.00014959,2]
[392498679,1761570611474,361.96141388,0.00014959,2]
[392498680,1761570626843,361.96141388,0.00014959,2]
[392498722,1761570634804,361.96141388,0.00014959,2]
[392498764,1761570639150,-165.96141388,0.0001511,2]
[392498765,1761570639160,-196.0,0.0001511,2]
[392498766,1761570639170,-136.18058612,0.00015858,2]
[392498826,1761570640715,-59.81941388,0.00015858,2]
[392498828,1761570640724,-300.0,0.00015919,2]
[392498830,1761570640734,-144.07930319,0.0001592,2]
[392498833,1761570640749,-458.9508,0.0001592,2]
[392499036,1761570646544,-28.96989681,0.0001592,2]
[392499037,1761570646554,-574.517,0.0001592,2]
[392499038,1761570646783,-2166.0,0.0001592,2]
[392499039,1761570646799,-1802.18491303,0.00016088,2]
[392499040,1761570646810,-397.71417305,0.0001609,2]
[392499041,1761570646819,-31871.17431711,0.0001609,2]
[392499042,1761570676269,500.0,0.000181,7]
[392499043,1761570677045,500.0,0.000181,7]
[392499044,1761570677808,500.0,0.000181,7]
[392499045,1761570678584,500.0,0.000181,7]
[392499046,1761570679411,500.0,0.000181,7]
[392499047,1761570680300,500.0,0.000181,7]
[392499048,1761570681069,500.0,0.000181,7]
[392499049,1761570681842,500.0,0.000181,7]
[392499050,1761570682612,500.0,0.000181,7]
[392499051,1761570683380,500.0,0.000181,7]
[392499052,1761570684147,264.28,0.000181,7]
[392499054,1761570846810,196.0,0.00014959,2]
[392499057,1761570855697,196.0,0.00014959,2]
[392499058,1761570857752,2000.0,0.00030137,120]
[392499059,1761570871844,5000.0,0.0001825,9]
[392499060,1761570879978,5000.0,0.0001825,9]
[392499061,1761570884779,4751.0,0.00015,2]
[392499062,1761570895600,5000.0,0.0001825,9]
[392499063,1761570903949,5000.0,0.0001825,9]
[392499065,1761570919924,196.0,0.00014959,2]
[392499066,1761570928018,196.0,0.00014959,2]
[392499067,1761570943815,196.0,0.00014959,2]
[392499068,1761570951855,196.0,0.00014959,2]
[392499069,1761570967602,196.0,0.00014959,2]
[392499070,1761570975572,196.0,0.00014959,2]
[392499071,1761570991803,196.0,0.00014959,2]
[392499072,1761570999768,196.0,0.00014959,2]
[392499074,1761571008157,196.0,0.00014959,2]
[392499075,1761571016198,196.0,0.00014959,2]
[392499077,1761571024612,196.0,0.00014959,2]
[392499082,1761571040768,196.0,0.00014959,2]
[392499085,1761571049505,196.0,0.00014959,2]
[392499086,1761571065568,196.0,0.00014959,2]
[392499089,1761571090329,196.0,0.00014959,2]
[392499090,1761571113049,196.0,0.00014959,2]
[392499091,1761571135683,196.0,0.00014959,2]
[392499092,1761571158454,196.0,0.00014959,2]
[392499093,1761571180983,196.0,0.00014959,2]
[392499095,1761571203465,196.0,0.00014959,2]
[392499100,1761571228528,196.0,0.00014959,2]
[392499101,1761571251255,196.0,0.00014959,2]
[392499102,1761571259716,196.0,0.00014959,2]
[392499104,1761571275115,196.0,0.00014959,2]
[392499105,1761571283554,196.0,0.00014959,2]
[392499106,1761571299207,196.0,0.00014959,2]
[392499107,1761571307259,196.0,0.00014959,2]
[392499108,1761571322820,196.0,0.00014959,2]
[392499109,1761571331099,196.0,0.00014959,2]
[392499110,1761571347330,196.0,0.00014959,2]
[392499111,1761571355788,196.0,0.00014959,2]
[392499112,1761571371111,196.0,0.00014959,2]
[392499113,1761571379662,196.0,0.00014959,2]
[392499114,1761571395671,196.0,0.00014959,2]
[392499115,1761571403693,196.0,0.00014959,2]
[392499116,1761571419120,196.0,0.00014959,2]
[392499118,1761571427229,196.0,0.00014959,2]
[392499119,1761571443595,196.0,0.00014959,2]
[392499125,1761571453051,196.0,0.00014959,2]
[392499126,1761571469788,196.0,0.00014959,2]
[392499127,1761571477980,196.0,0.00014959,2]
[392499128,1761571493980,196.0,0.00014959,2]
[392499129,1761571502520,196.0,0.00014959,2]
[392499141,1761571517694,196.0,0.00014959,2]
[392499147,1761571526155,196.0,0.00014959,2]
[392499154,1761571541460,196.0,0.00014959,2]
[392499155,1761571545643,200.0,0.00028896,120]
[392499156,1761571546927,200.0,0.00028896,120]
[392499158,1761571547298,202.27175079,0.00028896,120]
[392499164,1761571562339,-224.09881073,0.00015008,2]
[392499166,1761571565155,1347.26428686,0.00014858,2]
[392499167,1761571565412,-262.61154101,0.00015008,2]
[392499177,1761571588640,1084.65274585,0.00014858,2]
[392499191,1761571611254,1084.65274585,0.00014858,2]
[392499197,1761571633892,1084.65274585,0.00014858,2]
[392499213,1761571650872,4075.0021887,0.00014887,2]
[392499234,1761571656431,1084.65274585,0.00014858,2]
[392499240,1761571680149,1084.65274585,0.00014858,2]
[392499254,1761571703765,1084.65274585,0.00014858,2]
[392499276,1761571726328,1084.65274585,0.00014858,2]
[392499283,1761571734797,1084.65274585,0.00014858,2]
[392499339,1761571750643,196.0,0.00014959,2]
[392499343,1761571759424,196.0,0.00014959,2]
[392499353,1761571776341,196.0,0.00014959,2]
[392499354,1761571784524,196.0,0.00014959,2]
[392499361,1761571800653,196.0,0.00014959,2]
[392499370,1761571808924,196.0,0.00014959,2]
[392499373,1761571824712,196.0,0.00014959,2]
[392499389,1761571832673,-196.0,0.0001511,2]
[392499390,1761571832683,-300.37953363,0.00015135,2]
[392499391,1761571832698,-1216.8922768,0.00015135,2]
[392499420,1761571838882,-54.09128716,0.00015135,2]
[392499421,1761571838892,-196.0,0.00015442,2]
[392499422,1761571838902,-196.0,0.00015774,2]
[392499423,1761571838911,-368.01558845,0.00015886,2]
[392499424,1761571838921,-800.0,0.000159,2]
[392499425,1761571838931,-1941.50749024,0.00015913,2]
[392499426,1761571838941,-480.7637217,0.00015963,2]
[392499427,1761571838951,-266.49233208,0.00015963,2]
[392499428,1761571838962,-1064.90335899,0.00015963,2]
[392499429,1761571838972,-698.53801178,0.00015963,2]
[392499430,1761571838983,-1200.0,0.00015983,2]
[392499431,1761571838993,-1200.0,0.00015984,2]
[392499432,1761571839003,-300.0,0.00015984,2]
[392499433,1761571839013,-300.0,0.00015984,2]
[392499434,1761571839026,-300.0,0.00015984,2]
[392499435,1761571839036,-300.0,0.00015984,2]
[392499436,1761571839045,-300.0,0.00015984,2]
[392499437,1761571839055,-500.0,0.00015984,2]
[392499438,1761571839066,-500.0,0.00015984,2]
[392499439,1761571839077,-297.24502937,0.00015984,2]
[392499440,1761571839086,-500.0,0.00015984,2]
[392499441,1761571839097,-500.0,0.00015984,2]
[392499442,1761571839107,-500.0,0.00015984,2]
[392499443,1761571839117,-500.0,0.00015984,2]
[392499444,1761571839127,-500.0,0.00015984,2]
[392499445,1761571839136,-500.0,0.00015984,2]
[392499446,1761571839145,-500.0,0.00015984,2]
[392499447,1761571839155,-500.0,0.00015984,2]
[392499448,1761571839164,-500.0,0.00015984,2]
[392499449,1761571839174,-500.0,0.00015984,2]
[392499450,1761571839183,-500.0,0.00015984,2]
[392499451,1761571839193,-500.0,0.00015984,2]
[392499452,1761571839203,-500.0,0.00015984,2]
[392499453,1761571839213,-500.0,0.00015984,2]
[392499454,1761571839223,-500.0,0.00015984,2]
[392499455,1761571839233,-500.0,0.00015984,2]
[392499456,1761571839243,-500.0,0.00015984,2]
[392499457,1761571839253,-500.0,0.00015984,2]
[392499458,1761571839262,-500.0,0.00015984,2]
[392499459,1761571839272,-500.0,0.00015984,2]
[392499460,1761571839282,-447.54466687,0.00015984,2]
[392499461,1761571839292,-500.0,0.00015984,2]
[392499462,1761571839301,-500.0,0.00015984,2]
[392499463,1761571839311,-500.0,0.00015984,2]
[392499464,1761571839320,-500.0,0.00015984,2]
[392499465,1761571839329,-500.0,0.00015984,2]
[392499466,1761571839338,-500.0,0.00015984,2]
[392499467,1761571839347,-563.66139255,0.00015984,2]
[392499468,1761571839357,-500.0,0.00015984,2]
[392499469,1761571839367,-500.0,0.00015984,2]
[392499470,1761571839376,-392.47126607,0.00015984,2]
[392499471,1761571839387,-500.0,0.00015984,2]
[392499472,1761571839396,-500.0,0.00015984,2]
[392499473,1761571839405,-500.0,0.00015984,2]
[392499474,1761571839415,-500.0,0.00015984,2]
[392499475,1761571839425,-500.0,0.00015984,2]
[392499476,1761571839434,-500.0,0.00015984,2]
[392499477,1761571839443,-500.0,0.00015984,2]
[392499478,1761571839452,-500.0,0.00015984,2]
[392499479,1761571839462,-500.0,0.00015984,2]
[392499480,1761571839472,-500.0,0.00015984,2]
[392499481,1761571839481,-500.0,0.00015984,2]
[392499482,1761571839491,-500.0,0.00015984,2]
[392499483,1761571839500,-500.0,0.00015984,2]
[392499484,1761571839509,-500.0,0.00015984,2]
[392499485,1761571839518,-395.14202578,0.00015985,2]
[392499486,1761571839528,-198.416935,0.00015989,2]
[392499487,1761571839538,-209.81358067,0.00015989,2]
[392499488,1761571839548,-311453.65679697,0.0001599,2]
[392499489,1761571839565,-58546.34320303,0.0001599,2]
[392499490,1761571839574,-514.209,0.00016033,2]
[392499491,1761571839584,-1218.48,0.00016033,2]
[392499492,1761571839594,-412.0,0.00016033,2]
[392499493,1761571839603,-151.0,0.00016087,2]
[392499494,1761571839613,-151.0,0.00016087,2]
[392499495,1761571839623,-169.7021934,0.00016089,2]
[392499496,1761571839632,-500.0,0.0001609,2]
[392499497,1761571839644,-196.0,0.00016107,2]
[392499498,1761571839654,-3445.4980017,0.0001615,2]
[392499499,1761571839663,-2344.370031,0.0001615,2]
[392499500,1761571839673,-169.6930566,0.000162,2]
[392499501,1761571839683,-500.0,0.00016364,2]
[392499502,1761571839694,-180.03960871,0.00016377,2]
[392499503,1761571839704,-196.0,0.00016439,2]
[392499504,1761571839714,-179.14,0.0001644,2]
[392499505,1761571839724,-276.2,0.00016538,2]
[392499506,1761571839733,-500.0,0.00016638,2]
[392499507,1761571839743,-196.0,0.00016771,2]
[392499508,1761571839752,-218.61911499,0.00016814,2]
[392499509,1761571839762,-299.0,0.00016818,2]
[392499510,1761571839772,-382.28,0.00016838,2]
[392499511,1761571839783,-447.782922,0.0001689,2]
[392499512,1761571839792,-376.127983,0.0001689,2]
[392499513,1761571839802,-800.0,0.000169,3]
[392499514,1761571839812,-2300.0,0.00016908,2]
[392499515,1761571839821,-500.0,0.00016912,2]
[392499516,1761571839831,-276.2,0.00016925,2]
[392499517,1761571839841,-1000.0,0.00017,2]
[392499518,1761571839851,-500.0,0.00017009,2]
[392499519,1761571839860,-362.0,0.00017016,2]
[392499520,1761571839870,-300.0,0.00017023,2]
[392499521,1761571839879,-300.0,0.00017023,2]
[392499522,1761571839890,-300.0,0.00017023,2]
[392499523,1761571839899,-300.0,0.00017023,2]
[392499524,1761571839909,-300.0,0.00017023,2]
[392499525,1761571839918,-300.0,0.00017023,2]
[392499526,1761571839928,-300.0,0.00017023,2]
[392499527,1761571839938,-300.0,0.00017023,2]
[392499528,1761571839947,-300.0,0.00017023,2]
[392499529,1761571839957,-300.0,0.00017023,2]
[392499530,1761571839967,-300.0,0.00017023,2]
[392499531,1761571839976,-300.0,0.00017023,2]
[392499532,1761571839985,-300.0,0.00017023,2]
[392499533,1761571839995,-300.0,0.00017023,2]
[392499534,1761571840004,-300.0,0.00017023,2]
[392499535,1761571840013,-600.0,0.00017023,2]
[392499536,1761571840027,-196.0,0.00017103,2]
[392499537,1761571840038,-1854.20845516,0.00017135,2]
[392499538,1761571840048,-430.0,0.00017175,2]
[392499539,1761571840057,-500.0,0.00017186,2]
[392499540,1761571840068,-168.0,0.0001721,2]
[392499541,1761571840078,-489.79637787,0.00017244,2]
[392499542,1761571840089,-168.0,0.00017262,2]
[392499543,1761571840100,-1000.0,0.000173,2]
[392499544,1761571840109,-747.77085944,0.00017311,2]
[392499545,1761571840118,-276.2,0.00017313,2]
[392499546,1761571840128,-368.01558844,0.0001732,2]
[392499547,1761571840138,-1003.815,0.00017353,2]
[392499548,1761571840147,-168.0,0.00017383,2]
[392499550,1761571840157,-196.0,0.00017436,2]
[392499551,1761571840166,-500.0,0.0001746,2]
[392499552,1761571840175,-500.0,0.00017464,2]
[392499553,1761571840185,-420.0,0.00017476,2]
[392499554,1761571840195,-600.0,0.0001752,2]
[392499555,1761571840205,-2116.60097254,0.000176,2]
[392499556,1761571840214,-168.0,0.00017606,2]
[392499558,1761571840224,-276.2,0.000177,2]
[392499559,1761571840234,-600.0,0.00017702,2]
[392499560,1761571840245,-500.0,0.00017734,2]
[392499561,1761571840254,-1957.22632597,0.00017744,2]
[392499562,1761571840264,-196.0,0.00017768,2]
[392499563,1761571840273,-65.35104743,0.00017778,2]
[392499831,1761572045771,205.74842588,0.0001486,2]
[392499836,1761572054164,205.74842588,0.0001486,2]
[392499837,1761572069811,205.74842588,0.0001486,2]
[392499838,1761572077968,205.74842588,0.0001486,2]
[392499839,1761572093545,205.74842588,0.0001486,2]
[392499840,1761572101799,205.74842588,0.0001486,2]
[392499841,1761572118141,205.74842588,0.0001486,2]
[392499842,1761572126215,205.74842588,0.0001486,2]
[392499843,1761572142482,205.74842588,0.0001486,2]
[392499844,1761572150622,205.74842588,0.0001486,2]
[392499845,1761572166195,205.74842588,0.0001486,2]
[392499847,1761572174288,205.74842588,0.0001486,2]
[392499851,1761572191271,205.74842588,0.0001486,2]
[392499852,1761572199662,205.74842588,0.0001486,2]
[392499853,1761572216493,205.74842588,0.0001486,2]
[392499854,1761572223318,526.37851,0.00013699,2]
[392499855,1761572225357,205.74842588,0.0001486,2]
[392499857,1761572241460,205.74842588,0.0001486,2]
[392499859,1761572249553,205.74842588,0.0001486,2]
[392499860,1761572266092,205.74842588,0.0001486,2]
[392499861,1761572274228,205.74842588,0.0001486,2]
[392499863,1761572289764,205.74842588,0.0001486,2]
[392499865,1761572298491,205.74842588,0.0001486,2]
[392499866,1761572314236,205.74842588,0.0001486,2]
[392499867,1761572322443,205.74842588,0.0001486,2]
[392499871,1761572339016,205.74842588,0.0001486,2]
[392499873,1761572347122,205.74842588,0.0001486,2]
[392499881,1761572363084,205.74842588,0.0001486,2]
[392499883,1761572371500,205.74842588,0.0001486,2]
[392499890,1761572387711,205.74842588,0.0001486,2]
[392499891,1761572396141,205.74842588,0.0001486,2]
[392499893,1761572412109,205.74842588,0.0001486,2]
[392499897,1761572420126,205.74842588,0.0001486,2]
[392499898,1761572435775,205.74842588,0.0001486,2]
[392499899,1761572445154,205.74842588,0.0001486,2]
[392499900,1761572460944,205.74842588,0.0001486,2]
[392499901,1761572469031,205.74842588,0.0001486,2]
[392499902,1761572485344,205.74842588,0.0001486,2]
[392499904,1761572493564,205.74842588,0.0001486,2]
[392499905,1761572509498,205.74842588,0.0001486,2]
[392499906,1761572517559,205.74842588,0.0001486,2]
[392499908,1761572533932,205.74842588,0.0001486,2]
[392499909,1761572542591,205.74842588,0.0001486,2]
[392499910,1761572558551,205.74842588,0.0001486,2]
[392499911,1761572566508,205.74842588,0.0001486,2]
[392499912,1761572582352,205.74842588,0.0001486,2]
[392499913,1761572590704,205.74842588,0.0001486,2]
[392499917,1761572607106,205.74842588,0.0001486,2]
[392499918,1761572615130,205.74842588,0.0001486,2]
[392499919,1761572631465,205.74842588,0.0001486,2]
[392499920,1761572639605,205.74842588,0.0001486,2]
[392499923,1761572655682,205.74842588,0.0001486,2]
[392499924,1761572663811,205.74842588,0.0001486,2]
[392499925,1761572679281,205.74842588,0.0001486,2]
[392499926,1761572687405,205.74842588,0.0001486,2]
[392499927,1761572703730,205.74842588,0.0001486,2]
[392499928,1761572711747,205.74842588,0.0001486,2]
[392499930,1761572728036,205.74842588,0.0001486,2]
[392499931,1761572736340,205.74842588,0.0001486,2]
[392499933,1761572751984,205.74842588,0.0001486,2]
[392499934,1761572760196,205.74842588,0.0001486,2]
[392499935,1761572776753,205.74842588,0.0001486,2]
[392499937,1761572784932,205.74842588,0.0001486,2]
[392499940,1761572800879,205.74842588,0.0001486,2]
[392499941,1761572808967,205.74842588,0.0001486,2]
[392499944,1761572825265,205.74842588,0.0001486,2]
[392499952,1761572833447,205.74842588,0.0001486,2]
[392499955,1761572849192,205.74842588,0.0001486,2]
[392499958,1761572857261,205.74842588,0.0001486,2]
[392499959,1761572872806,205.74842588,0.0001486,2]
[392499960,1761572880861,205.74842588,0.0001486,2]
[392499961,1761572897211,205.74842588,0.0001486,2]
[392499963,1761572905345,205.74842588,0.0001486,2]
[392499966,1761572920990,205.74842588,0.0001486,2]
[392499968,1761572929549,205.74842588,0.0001486,2]
[392499973,1761572945734,205.74842588,0.0001486,2]
[392499974,1761572954144,205.74842588,0.0001486,2]
[392500077,1761572969575,205.74842588,0.0001486,2]
[392500141,1761572977761,205.74842588,0.0001486,2]
[392500142,1761572994200,205.74842588,0.0001486,2]
[392500143,1761573002823,205.74842588,0.0001486,2]
[392500151,1761573018832,205.74842588,0.0001486,2]
[392500154,1761573026960,205.74842588,0.0001486,2]
[392500163,1761573032794,-205.74842588,0.0001501,2]
[392500165,1761573032804,-1502.85166653,0.00015023,2]
[392500167,1761573032814,-196.0,0.0001511,2]
[392500169,1761573032823,-196.0,0.00015608,2]
[392500171,1761573032833,-276.01169133,0.0001579,2]
[392500173,1761573032842,-271.549196,0.00015819,2]
[392500175,1761573032852,-223.26638784,0.00015888,2]
[392500177,1761573032863,-485.73361216,0.00015888,2]
[392500179,1761573032872,-500.0,0.00015889,2]
[392500181,1761573032882,-507.07348806,0.00015889,2]
[392500183,1761573032891,-500.0,0.00015889,2]
[392500185,1761573032900,-135.02779502,0.00015889,2]
[392500259,1761573038820,-364.97220498,0.00015889,2]
[392500260,1761573038831,-383.06051854,0.00015889,2]
[392500261,1761573038846,-210.27458512,0.00015889,2]
[392500262,1761573038856,-245.59340813,0.00015889,2]
[392500263,1761573038866,-387.85418823,0.0001589,2]
[392500264,1761573038877,-22010.9443793,0.0001589,2]
[392500285,1761573040895,-145982.28845256,0.0001589,2]
[392500286,1761573040955,-68918.00000001,0.0001589,2]
[392500287,1761573040967,-1706.23160862,0.0001589,2]